{"text_format":"1","workbook":"xlsx","n_sheets":3,"sheets":["Sheet1","Sheet2","Sheet3"],"not_rendered":{"charts":0,"images":0,"macros":1,"external_links":0,"defined_names":0,"comments":0,"pivot_tables":0},"unopened":[],"bounds":{"document_bytes":16777216,"sheet_cells":100000,"rows_first":2000,"rows_last":500,"rows_between":2000,"halvings":0,"cell_chars":16384,"cell_head_chars":4096},"cells_cut":0,"cells_raw":0,"read":"whole","date_system":"1900"}

{"sheet":"Sheet1","index":0,"n_rows":372,"n_cols":18,"rows_kept":372,"cut":false,"hidden":false,"merged":[[195,3,195,9],[191,3,191,9],[192,3,192,9],[193,3,193,9],[194,3,194,9],[212,3,212,9],[213,3,213,9],[214,3,214,9],[215,3,215,9],[196,3,196,9],[197,3,197,9],[198,3,198,9],[199,3,199,9],[200,3,200,9],[206,3,206,9],[207,3,207,9],[208,3,208,9],[209,3,209,9],[210,3,210,9],[211,3,211,9],[201,3,201,9],[202,3,202,9],[203,3,203,9],[204,3,204,9],[205,3,205,9],[223,3,223,9],[220,3,220,9],[221,3,221,9],[222,3,222,9],[216,3,216,9],[217,3,217,9],[218,3,218,9],[219,3,219,9],[224,3,224,9],[225,3,225,9],[226,3,226,9],[227,3,227,9],[228,3,228,9],[229,3,229,9],[230,3,230,9],[231,3,231,9],[232,3,232,9],[233,3,233,9],[234,3,234,9],[235,3,235,9],[236,3,236,9],[237,3,237,9],[238,3,238,9],[239,3,239,9],[240,3,240,9],[241,3,241,9],[242,3,242,9],[243,3,243,9],[244,3,244,9],[245,3,245,9],[246,3,246,9],[247,3,247,9],[248,3,248,9],[249,3,249,9],[250,3,250,9],[251,3,251,9],[252,3,252,9],[253,3,253,9],[254,3,254,9],[255,3,255,9],[256,3,256,9],[257,3,257,9],[371,3,371,9],[370,3,370,9],[369,3,369,9],[368,3,368,9],[367,3,367,9],[366,3,366,9],[365,3,365,9],[364,3,364,9],[363,3,363,9],[362,3,362,9],[361,3,361,9],[360,3,360,9],[359,3,359,9],[358,3,358,9],[357,3,357,9],[356,3,356,9],[355,3,355,9],[354,3,354,9],[353,3,353,9],[352,3,352,9],[351,3,351,9],[350,3,350,9],[349,3,349,9],[348,3,348,9],[347,3,347,9],[346,3,346,9],[345,3,345,9],[344,3,344,9],[343,3,343,9],[342,3,342,9],[341,3,341,9],[340,3,340,9],[339,3,339,9],[338,3,338,9],[337,3,337,9],[336,3,336,9],[335,3,335,9],[334,3,334,9],[333,3,333,9],[332,3,332,9],[331,3,331,9],[330,3,330,9],[329,3,329,9],[328,3,328,9],[327,3,327,9],[326,3,326,9],[325,3,325,9],[324,3,324,9],[323,3,323,9],[322,3,322,9],[321,3,321,9],[320,3,320,9],[319,3,319,9],[318,3,318,9],[317,3,317,9],[316,3,316,9],[315,3,315,9],[314,3,314,9],[313,3,313,9],[312,3,312,9],[311,3,311,9],[310,3,310,9],[309,3,309,9],[308,3,308,9],[307,3,307,9],[306,3,306,9],[305,3,305,9],[304,3,304,9],[303,3,303,9],[302,3,302,9],[301,3,301,9],[300,3,300,9],[299,3,299,9],[298,3,298,9],[297,3,297,9],[296,3,296,9],[295,3,295,9],[294,3,294,9],[293,3,293,9],[292,3,292,9],[291,3,291,9],[290,3,290,9],[289,3,289,9],[288,3,288,9],[287,3,287,9],[286,3,286,9],[285,3,285,9],[284,3,284,9],[283,3,283,9],[282,3,282,9],[281,3,281,9],[280,3,280,9],[279,3,279,9],[278,3,278,9],[277,3,277,9],[276,3,276,9],[275,3,275,9],[265,3,265,9],[264,3,264,9],[263,3,263,9],[262,3,262,9],[261,3,261,9],[260,3,260,9],[259,3,259,9],[258,3,258,9],[274,3,274,9],[273,3,273,9],[272,3,272,9],[271,3,271,9],[270,3,270,9],[269,3,269,9],[268,3,268,9],[267,3,267,9],[266,3,266,9]]}
[null,"HS Science Measure"]
[null,"Last Name","First Name","Semester I Assessment Percentage (%)","Semester II Assessment Percentage (%)","Average Assessment Percentage (%)","Target Met?","Score Counted for Data",null,null,null,"Counted? Counter","Target Met? Counter","Target Did Not Meet? Counter","Counted and Met? Counter","Counted and Did Not Meet? Counter","Semester 1 Assessment Score Validation","Semester 2 Assessment Score Validation"]
[1,null,null,null,null,{"$f":"(D3+E3)/2","v":0},{"$f":"IF((F3=0%),\"INVALID\", IF(AND(F3>=($J$11*100)),\"YES\", IF(AND(F3<($J$11*100),F3>=1%),\"NO\")))","v":"INVALID"},"YES","Teacher",null,"YES",{"$f":"COUNTIF(H3,\"yes\")","v":1},{"$f":"COUNTIF(G3,\"yes\")","v":0},{"$f":"COUNTIF(G3,\"no\")","v":0},{"$f":"L3+M3","v":1},{"$f":"L3+N3","v":1},{"$f":"IF((D3 / 100)>1,InvalidAssessmentScore())","v":false},{"$f":"IF((E3 / 100)>1,InvalidAssessmentScore())","v":false}]
[2,null,null,null,null,{"$f":"(D4+E4)/2","v":0},{"$f":"IF((F4=0%),\"INVALID\", IF(AND(F4>=($J$11*100)),\"YES\", IF(AND(F4<($J$11*100),F4>=1%),\"NO\")))","v":"INVALID"},"YES","Assessment Points Possible (%)",1,"NO",{"$f":"COUNTIF(H4,\"yes\")","v":1},{"$f":"COUNTIF(G4,\"yes\")","v":0},{"$f":"COUNTIF(G4,\"no\")","v":0},{"$f":"L4+M4","v":1},{"$f":"L4+N4","v":1},{"$f":"IF((D4 / 100)>1,InvalidAssessmentScore())","v":false},{"$f":"IF((E4 / 100)>1,InvalidAssessmentScore())","v":false}]
[3,null,null,null,null,0,"INVALID","YES","Total Tested",{"$f":"COUNTA(B3:B182)","v":0},null,1,0,0,1,1,{"$f":"IF((D5 / 100)>1,InvalidAssessmentScore())","v":false},{"$f":"IF((E5 / 100)>1,InvalidAssessmentScore())","v":false}]
[4,null,null,null,null,0,"INVALID","YES","Total Excluded",{"$f":"COUNTIF(H:H,\"NO\")","v":0},null,1,0,0,1,1,{"$f":"IF((D6 / 100)>1,InvalidAssessmentScore())","v":false},{"$f":"IF((E6 / 100)>1,InvalidAssessmentScore())","v":false}]
[5,null,null,null,null,0,"INVALID","YES","Total Counted",{"$f":"J5-J6","v":0},null,1,0,0,1,1,{"$f":"IF((D7 / 100)>1,InvalidAssessmentScore())","v":false},{"$f":"IF((E7 / 100)>1,InvalidAssessmentScore())","v":false}]
[6,null,null,null,null,0,"INVALID","YES","Target Met (Counted)",{"$f":"COUNTIF(O:O,\"2\")","v":0},null,1,0,0,1,1,{"$f":"IF((D8 / 100)>1,InvalidAssessmentScore())","v":false},{"$f":"IF((E8 / 100)>1,InvalidAssessmentScore())","v":false}]
[7,null,null,null,null,0,"INVALID","YES","Target Did Not Meet (Counted)",{"$f":"COUNTIF(P:P,\"2\")","v":0},null,1,0,0,1,1,{"$f":"IF((D9 / 100)>1,InvalidAssessmentScore())","v":false},{"$f":"IF((E9 / 100)>1,InvalidAssessmentScore())","v":false}]
[8,null,null,null,null,0,"INVALID","YES","Percentage Meeting Target",{"$f":"J8/J7","v":{"$error":"#DIV/0!"}},null,1,0,0,1,1,{"$f":"IF((D10 / 100)>1,InvalidAssessmentScore())","v":false},{"$f":"IF((E10 / 100)>1,InvalidAssessmentScore())","v":false}]
[9,null,null,null,null,0,"INVALID","YES","Proficiency Threshold Percentage (%)",null,null,1,0,0,1,1,{"$f":"IF((D11 / 100)>1,InvalidAssessmentScore())","v":false},{"$f":"IF((E11 / 100)>1,InvalidAssessmentScore())","v":false}]
[10,null,null,null,null,0,"INVALID","YES",null,null,null,1,0,0,1,1,{"$f":"IF((D12 / 100)>1,InvalidAssessmentScore())","v":false},{"$f":"IF((E12 / 100)>1,InvalidAssessmentScore())","v":false}]
[11,null,null,null,null,0,"INVALID","YES",null,null,null,1,0,0,1,1,{"$f":"IF((D13 / 100)>1,InvalidAssessmentScore())","v":false},{"$f":"IF((E13 / 100)>1,InvalidAssessmentScore())","v":false}]
[12,null,null,null,null,0,"INVALID","YES",null,null,null,1,0,0,1,1,{"$f":"IF((D14 / 100)>1,InvalidAssessmentScore())","v":false},{"$f":"IF((E14 / 100)>1,InvalidAssessmentScore())","v":false}]
[13,null,null,null,null,0,"INVALID","YES",null,null,null,1,0,0,1,1,{"$f":"IF((D15 / 100)>1,InvalidAssessmentScore())","v":false},{"$f":"IF((E15 / 100)>1,InvalidAssessmentScore())","v":false}]
[14,null,null,null,null,0,"INVALID","YES",null,null,null,1,0,0,1,1,{"$f":"IF((D16 / 100)>1,InvalidAssessmentScore())","v":false},{"$f":"IF((E16 / 100)>1,InvalidAssessmentScore())","v":false}]
[15,null,null,null,null,0,"INVALID","YES",null,null,null,1,0,0,1,1,{"$f":"IF((D17 / 100)>1,InvalidAssessmentScore())","v":false},{"$f":"IF((E17 / 100)>1,InvalidAssessmentScore())","v":false}]
[16,null,null,null,null,0,"INVALID","YES",null,null,null,1,0,0,1,1,{"$f":"IF((D18 / 100)>1,InvalidAssessmentScore())","v":false},{"$f":"IF((E18 / 100)>1,InvalidAssessmentScore())","v":false}]
[17,null,null,null,null,0,"INVALID","YES",null,null,null,1,0,0,1,1,{"$f":"IF((D19 / 100)>1,InvalidAssessmentScore())","v":false},{"$f":"IF((E19 / 100)>1,InvalidAssessmentScore())","v":false}]
[18,null,null,null,null,0,"INVALID","YES",null,null,null,1,0,0,1,1,{"$f":"IF((D20 / 100)>1,InvalidAssessmentScore())","v":false},{"$f":"IF((E20 / 100)>1,InvalidAssessmentScore())","v":false}]
[19,null,null,null,null,0,"INVALID","YES",null,null,null,1,0,0,1,1,{"$f":"IF((D21 / 100)>1,InvalidAssessmentScore())","v":false},{"$f":"IF((E21 / 100)>1,InvalidAssessmentScore())","v":false}]
[20,null,null,null,null,0,"INVALID","YES",null,null,null,1,0,0,1,1,{"$f":"IF((D22 / 100)>1,InvalidAssessmentScore())","v":false},{"$f":"IF((E22 / 100)>1,InvalidAssessmentScore())","v":false}]
[21,null,null,null,null,0,"INVALID","YES",null,null,null,1,0,0,1,1,{"$f":"IF((D23 / 100)>1,InvalidAssessmentScore())","v":false},{"$f":"IF((E23 / 100)>1,InvalidAssessmentScore())","v":false}]
[22,null,null,null,null,0,"INVALID","YES",null,null,null,1,0,0,1,1,{"$f":"IF((D24 / 100)>1,InvalidAssessmentScore())","v":false},{"$f":"IF((E24 / 100)>1,InvalidAssessmentScore())","v":false}]
[23,null,null,null,null,0,"INVALID","YES",null,null,null,1,0,0,1,1,{"$f":"IF((D25 / 100)>1,InvalidAssessmentScore())","v":false},{"$f":"IF((E25 / 100)>1,InvalidAssessmentScore())","v":false}]
[24,null,null,null,null,0,"INVALID","YES",null,null,null,1,0,0,1,1,{"$f":"IF((D26 / 100)>1,InvalidAssessmentScore())","v":false},{"$f":"IF((E26 / 100)>1,InvalidAssessmentScore())","v":false}]
[25,null,null,null,null,0,"INVALID","YES",null,null,null,1,0,0,1,1,{"$f":"IF((D27 / 100)>1,InvalidAssessmentScore())","v":false},{"$f":"IF((E27 / 100)>1,InvalidAssessmentScore())","v":false}]
[26,null,null,null,null,0,"INVALID","YES",null,null,null,1,0,0,1,1,{"$f":"IF((D28 / 100)>1,InvalidAssessmentScore())","v":false},{"$f":"IF((E28 / 100)>1,InvalidAssessmentScore())","v":false}]
[27,null,null,null,null,0,"INVALID","YES",null,null,null,1,0,0,1,1,{"$f":"IF((D29 / 100)>1,InvalidAssessmentScore())","v":false},{"$f":"IF((E29 / 100)>1,InvalidAssessmentScore())","v":false}]
[28,null,null,null,null,0,"INVALID","YES",null,null,null,1,0,0,1,1,{"$f":"IF((D30 / 100)>1,InvalidAssessmentScore())","v":false},{"$f":"IF((E30 / 100)>1,InvalidAssessmentScore())","v":false}]
[29,null,null,null,null,0,"INVALID","YES",null,null,null,1,0,0,1,1,{"$f":"IF((D31 / 100)>1,InvalidAssessmentScore())","v":false},{"$f":"IF((E31 / 100)>1,InvalidAssessmentScore())","v":false}]
[30,null,null,null,null,0,"INVALID","YES",null,null,null,1,0,0,1,1,{"$f":"IF((D32 / 100)>1,InvalidAssessmentScore())","v":false},{"$f":"IF((E32 / 100)>1,InvalidAssessmentScore())","v":false}]
[31,null,null,null,null,0,"INVALID","YES",null,null,null,1,0,0,1,1,{"$f":"IF((D33 / 100)>1,InvalidAssessmentScore())","v":false},{"$f":"IF((E33 / 100)>1,InvalidAssessmentScore())","v":false}]
[32,null,null,null,null,0,"INVALID","YES",null,null,null,1,0,0,1,1,{"$f":"IF((D34 / 100)>1,InvalidAssessmentScore())","v":false},{"$f":"IF((E34 / 100)>1,InvalidAssessmentScore())","v":false}]
[33,null,null,null,null,0,"INVALID","YES",null,null,null,1,0,0,1,1,{"$f":"IF((D35 / 100)>1,InvalidAssessmentScore())","v":false},{"$f":"IF((E35 / 100)>1,InvalidAssessmentScore())","v":false}]
[34,null,null,null,null,0,"INVALID","YES",null,null,null,1,0,0,1,1,{"$f":"IF((D36 / 100)>1,InvalidAssessmentScore())","v":false},{"$f":"IF((E36 / 100)>1,InvalidAssessmentScore())","v":false}]
[35,null,null,null,null,0,"INVALID","YES",null,null,null,1,0,0,1,1,{"$f":"IF((D37 / 100)>1,InvalidAssessmentScore())","v":false},{"$f":"IF((E37 / 100)>1,InvalidAssessmentScore())","v":false}]
[36,null,null,null,null,0,"INVALID","YES",null,null,null,1,0,0,1,1,{"$f":"IF((D38 / 100)>1,InvalidAssessmentScore())","v":false},{"$f":"IF((E38 / 100)>1,InvalidAssessmentScore())","v":false}]
[37,null,null,null,null,0,"INVALID","YES",null,null,null,1,0,0,1,1,{"$f":"IF((D39 / 100)>1,InvalidAssessmentScore())","v":false},{"$f":"IF((E39 / 100)>1,InvalidAssessmentScore())","v":false}]
[38,null,null,null,null,0,"INVALID","YES",null,null,null,1,0,0,1,1,{"$f":"IF((D40 / 100)>1,InvalidAssessmentScore())","v":false},{"$f":"IF((E40 / 100)>1,InvalidAssessmentScore())","v":false}]
[39,null,null,null,null,0,"INVALID","YES",null,null,null,1,0,0,1,1,{"$f":"IF((D41 / 100)>1,InvalidAssessmentScore())","v":false},{"$f":"IF((E41 / 100)>1,InvalidAssessmentScore())","v":false}]
[40,null,null,null,null,0,"INVALID","YES",null,null,null,1,0,0,1,1,{"$f":"IF((D42 / 100)>1,InvalidAssessmentScore())","v":false},{"$f":"IF((E42 / 100)>1,InvalidAssessmentScore())","v":false}]
[41,null,null,null,null,0,"INVALID","YES",null,null,null,1,0,0,1,1,{"$f":"IF((D43 / 100)>1,InvalidAssessmentScore())","v":false},{"$f":"IF((E43 / 100)>1,InvalidAssessmentScore())","v":false}]
[42,null,null,null,null,0,"INVALID","YES",null,null,null,1,0,0,1,1,{"$f":"IF((D44 / 100)>1,InvalidAssessmentScore())","v":false},{"$f":"IF((E44 / 100)>1,InvalidAssessmentScore())","v":false}]
[43,null,null,null,null,0,"INVALID","YES",null,null,null,1,0,0,1,1,{"$f":"IF((D45 / 100)>1,InvalidAssessmentScore())","v":false},{"$f":"IF((E45 / 100)>1,InvalidAssessmentScore())","v":false}]
[44,null,null,null,null,0,"INVALID","YES",null,null,null,1,0,0,1,1,{"$f":"IF((D46 / 100)>1,InvalidAssessmentScore())","v":false},{"$f":"IF((E46 / 100)>1,InvalidAssessmentScore())","v":false}]
[45,null,null,null,null,0,"INVALID","YES",null,null,null,1,0,0,1,1,{"$f":"IF((D47 / 100)>1,InvalidAssessmentScore())","v":false},{"$f":"IF((E47 / 100)>1,InvalidAssessmentScore())","v":false}]
[46,null,null,null,null,0,"INVALID","YES",null,null,null,1,0,0,1,1,{"$f":"IF((D48 / 100)>1,InvalidAssessmentScore())","v":false},{"$f":"IF((E48 / 100)>1,InvalidAssessmentScore())","v":false}]
[47,null,null,null,null,0,"INVALID","YES",null,null,null,1,0,0,1,1,{"$f":"IF((D49 / 100)>1,InvalidAssessmentScore())","v":false},{"$f":"IF((E49 / 100)>1,InvalidAssessmentScore())","v":false}]
[48,null,null,null,null,0,"INVALID","YES",null,null,null,1,0,0,1,1,{"$f":"IF((D50 / 100)>1,InvalidAssessmentScore())","v":false},{"$f":"IF((E50 / 100)>1,InvalidAssessmentScore())","v":false}]
[49,null,null,null,null,0,"INVALID","YES",null,null,null,1,0,0,1,1,{"$f":"IF((D51 / 100)>1,InvalidAssessmentScore())","v":false},{"$f":"IF((E51 / 100)>1,InvalidAssessmentScore())","v":false}]
[50,null,null,null,null,0,"INVALID","YES",null,null,null,1,0,0,1,1,{"$f":"IF((D52 / 100)>1,InvalidAssessmentScore())","v":false},{"$f":"IF((E52 / 100)>1,InvalidAssessmentScore())","v":false}]
[51,null,null,null,null,0,"INVALID","YES",null,null,null,1,0,0,1,1,{"$f":"IF((D53 / 100)>1,InvalidAssessmentScore())","v":false},{"$f":"IF((E53 / 100)>1,InvalidAssessmentScore())","v":false}]
[52,null,null,null,null,0,"INVALID","YES",null,null,null,1,0,0,1,1,{"$f":"IF((D54 / 100)>1,InvalidAssessmentScore())","v":false},{"$f":"IF((E54 / 100)>1,InvalidAssessmentScore())","v":false}]
[53,null,null,null,null,0,"INVALID","YES",null,null,null,1,0,0,1,1,{"$f":"IF((D55 / 100)>1,InvalidAssessmentScore())","v":false},{"$f":"IF((E55 / 100)>1,InvalidAssessmentScore())","v":false}]
[54,null,null,null,null,0,"INVALID","YES",null,null,null,1,0,0,1,1,{"$f":"IF((D56 / 100)>1,InvalidAssessmentScore())","v":false},{"$f":"IF((E56 / 100)>1,InvalidAssessmentScore())","v":false}]
[55,null,null,null,null,0,"INVALID","YES",null,null,null,1,0,0,1,1,{"$f":"IF((D57 / 100)>1,InvalidAssessmentScore())","v":false},{"$f":"IF((E57 / 100)>1,InvalidAssessmentScore())","v":false}]
[56,null,null,null,null,0,"INVALID","YES",null,null,null,1,0,0,1,1,{"$f":"IF((D58 / 100)>1,InvalidAssessmentScore())","v":false},{"$f":"IF((E58 / 100)>1,InvalidAssessmentScore())","v":false}]
[57,null,null,null,null,0,"INVALID","YES",null,null,null,1,0,0,1,1,{"$f":"IF((D59 / 100)>1,InvalidAssessmentScore())","v":false},{"$f":"IF((E59 / 100)>1,InvalidAssessmentScore())","v":false}]
[58,null,null,null,null,0,"INVALID","YES",null,null,null,1,0,0,1,1,{"$f":"IF((D60 / 100)>1,InvalidAssessmentScore())","v":false},{"$f":"IF((E60 / 100)>1,InvalidAssessmentScore())","v":false}]
[59,null,null,null,null,0,"INVALID","YES",null,null,null,1,0,0,1,1,{"$f":"IF((D61 / 100)>1,InvalidAssessmentScore())","v":false},{"$f":"IF((E61 / 100)>1,InvalidAssessmentScore())","v":false}]
[60,null,null,null,null,0,"INVALID","YES",null,null,null,1,0,0,1,1,{"$f":"IF((D62 / 100)>1,InvalidAssessmentScore())","v":false},{"$f":"IF((E62 / 100)>1,InvalidAssessmentScore())","v":false}]
[61,null,null,null,null,0,"INVALID","YES",null,null,null,1,0,0,1,1,{"$f":"IF((D63 / 100)>1,InvalidAssessmentScore())","v":false},{"$f":"IF((E63 / 100)>1,InvalidAssessmentScore())","v":false}]
[62,null,null,null,null,0,"INVALID","YES",null,null,null,1,0,0,1,1,{"$f":"IF((D64 / 100)>1,InvalidAssessmentScore())","v":false},{"$f":"IF((E64 / 100)>1,InvalidAssessmentScore())","v":false}]
[63,null,null,null,null,0,"INVALID","YES",null,null,null,1,0,0,1,1,{"$f":"IF((D65 / 100)>1,InvalidAssessmentScore())","v":false},{"$f":"IF((E65 / 100)>1,InvalidAssessmentScore())","v":false}]
[64,null,null,null,null,0,"INVALID","YES",null,null,null,1,0,0,1,1,{"$f":"IF((D66 / 100)>1,InvalidAssessmentScore())","v":false},{"$f":"IF((E66 / 100)>1,InvalidAssessmentScore())","v":false}]
[65,null,null,null,null,0,"INVALID","YES",null,null,null,1,0,0,1,1,{"$f":"IF((D67 / 100)>1,InvalidAssessmentScore())","v":false},{"$f":"IF((E67 / 100)>1,InvalidAssessmentScore())","v":false}]
[66,null,null,null,null,{"$f":"(D68+E68)/2","v":0},{"$f":"IF((F68=0%),\"INVALID\", IF(AND(F68>=($J$11*100)),\"YES\", IF(AND(F68<($J$11*100),F68>=1%),\"NO\")))","v":"INVALID"},"YES",null,null,null,{"$f":"COUNTIF(H68,\"yes\")","v":1},{"$f":"COUNTIF(G68,\"yes\")","v":0},{"$f":"COUNTIF(G68,\"no\")","v":0},{"$f":"L68+M68","v":1},{"$f":"L68+N68","v":1},{"$f":"IF((D68 / 100)>1,InvalidAssessmentScore())","v":false},{"$f":"IF((E68 / 100)>1,InvalidAssessmentScore())","v":false}]
[67,null,null,null,null,0,"INVALID","YES",null,null,null,1,0,0,1,1,{"$f":"IF((D69 / 100)>1,InvalidAssessmentScore())","v":false},{"$f":"IF((E69 / 100)>1,InvalidAssessmentScore())","v":false}]
[68,null,null,null,null,0,"INVALID","YES",null,null,null,1,0,0,1,1,{"$f":"IF((D70 / 100)>1,InvalidAssessmentScore())","v":false},{"$f":"IF((E70 / 100)>1,InvalidAssessmentScore())","v":false}]
[69,null,null,null,null,0,"INVALID","YES",null,null,null,1,0,0,1,1,{"$f":"IF((D71 / 100)>1,InvalidAssessmentScore())","v":false},{"$f":"IF((E71 / 100)>1,InvalidAssessmentScore())","v":false}]
[70,null,null,null,null,0,"INVALID","YES",null,null,null,1,0,0,1,1,{"$f":"IF((D72 / 100)>1,InvalidAssessmentScore())","v":false},{"$f":"IF((E72 / 100)>1,InvalidAssessmentScore())","v":false}]
[71,null,null,null,null,0,"INVALID","YES",null,null,null,1,0,0,1,1,{"$f":"IF((D73 / 100)>1,InvalidAssessmentScore())","v":false},{"$f":"IF((E73 / 100)>1,InvalidAssessmentScore())","v":false}]
[72,null,null,null,null,0,"INVALID","YES",null,null,null,1,0,0,1,1,{"$f":"IF((D74 / 100)>1,InvalidAssessmentScore())","v":false},{"$f":"IF((E74 / 100)>1,InvalidAssessmentScore())","v":false}]
[73,null,null,null,null,0,"INVALID","YES",null,null,null,1,0,0,1,1,{"$f":"IF((D75 / 100)>1,InvalidAssessmentScore())","v":false},{"$f":"IF((E75 / 100)>1,InvalidAssessmentScore())","v":false}]
[74,null,null,null,null,0,"INVALID","YES",null,null,null,1,0,0,1,1,{"$f":"IF((D76 / 100)>1,InvalidAssessmentScore())","v":false},{"$f":"IF((E76 / 100)>1,InvalidAssessmentScore())","v":false}]
[75,null,null,null,null,0,"INVALID","YES",null,null,null,1,0,0,1,1,{"$f":"IF((D77 / 100)>1,InvalidAssessmentScore())","v":false},{"$f":"IF((E77 / 100)>1,InvalidAssessmentScore())","v":false}]
[76,null,null,null,null,0,"INVALID","YES",null,null,null,1,0,0,1,1,{"$f":"IF((D78 / 100)>1,InvalidAssessmentScore())","v":false},{"$f":"IF((E78 / 100)>1,InvalidAssessmentScore())","v":false}]
[77,null,null,null,null,0,"INVALID","YES",null,null,null,1,0,0,1,1,{"$f":"IF((D79 / 100)>1,InvalidAssessmentScore())","v":false},{"$f":"IF((E79 / 100)>1,InvalidAssessmentScore())","v":false}]
[78,null,null,null,null,0,"INVALID","YES",null,null,null,1,0,0,1,1,{"$f":"IF((D80 / 100)>1,InvalidAssessmentScore())","v":false},{"$f":"IF((E80 / 100)>1,InvalidAssessmentScore())","v":false}]
[79,null,null,null,null,0,"INVALID","YES",null,null,null,1,0,0,1,1,{"$f":"IF((D81 / 100)>1,InvalidAssessmentScore())","v":false},{"$f":"IF((E81 / 100)>1,InvalidAssessmentScore())","v":false}]
[80,null,null,null,null,0,"INVALID","YES",null,null,null,1,0,0,1,1,{"$f":"IF((D82 / 100)>1,InvalidAssessmentScore())","v":false},{"$f":"IF((E82 / 100)>1,InvalidAssessmentScore())","v":false}]
[81,null,null,null,null,0,"INVALID","YES",null,null,null,1,0,0,1,1,{"$f":"IF((D83 / 100)>1,InvalidAssessmentScore())","v":false},{"$f":"IF((E83 / 100)>1,InvalidAssessmentScore())","v":false}]
[82,null,null,null,null,0,"INVALID","YES",null,null,null,1,0,0,1,1,{"$f":"IF((D84 / 100)>1,InvalidAssessmentScore())","v":false},{"$f":"IF((E84 / 100)>1,InvalidAssessmentScore())","v":false}]
[83,null,null,null,null,0,"INVALID","YES",null,null,null,1,0,0,1,1,{"$f":"IF((D85 / 100)>1,InvalidAssessmentScore())","v":false},{"$f":"IF((E85 / 100)>1,InvalidAssessmentScore())","v":false}]
[84,null,null,null,null,0,"INVALID","YES",null,null,null,1,0,0,1,1,{"$f":"IF((D86 / 100)>1,InvalidAssessmentScore())","v":false},{"$f":"IF((E86 / 100)>1,InvalidAssessmentScore())","v":false}]
[85,null,null,null,null,0,"INVALID","YES",null,null,null,1,0,0,1,1,{"$f":"IF((D87 / 100)>1,InvalidAssessmentScore())","v":false},{"$f":"IF((E87 / 100)>1,InvalidAssessmentScore())","v":false}]
[86,null,null,null,null,0,"INVALID","YES",null,null,null,1,0,0,1,1,{"$f":"IF((D88 / 100)>1,InvalidAssessmentScore())","v":false},{"$f":"IF((E88 / 100)>1,InvalidAssessmentScore())","v":false}]
[87,null,null,null,null,0,"INVALID","YES",null,null,null,1,0,0,1,1,{"$f":"IF((D89 / 100)>1,InvalidAssessmentScore())","v":false},{"$f":"IF((E89 / 100)>1,InvalidAssessmentScore())","v":false}]
[88,null,null,null,null,0,"INVALID","YES",null,null,null,1,0,0,1,1,{"$f":"IF((D90 / 100)>1,InvalidAssessmentScore())","v":false},{"$f":"IF((E90 / 100)>1,InvalidAssessmentScore())","v":false}]
[89,null,null,null,null,0,"INVALID","YES",null,null,null,1,0,0,1,1,{"$f":"IF((D91 / 100)>1,InvalidAssessmentScore())","v":false},{"$f":"IF((E91 / 100)>1,InvalidAssessmentScore())","v":false}]
[90,null,null,null,null,0,"INVALID","YES",null,null,null,1,0,0,1,1,{"$f":"IF((D92 / 100)>1,InvalidAssessmentScore())","v":false},{"$f":"IF((E92 / 100)>1,InvalidAssessmentScore())","v":false}]
[91,null,null,null,null,0,"INVALID","YES",null,null,null,1,0,0,1,1,{"$f":"IF((D93 / 100)>1,InvalidAssessmentScore())","v":false},{"$f":"IF((E93 / 100)>1,InvalidAssessmentScore())","v":false}]
[92,null,null,null,null,0,"INVALID","YES",null,null,null,1,0,0,1,1,{"$f":"IF((D94 / 100)>1,InvalidAssessmentScore())","v":false},{"$f":"IF((E94 / 100)>1,InvalidAssessmentScore())","v":false}]
[93,null,null,null,null,0,"INVALID","YES",null,null,null,1,0,0,1,1,{"$f":"IF((D95 / 100)>1,InvalidAssessmentScore())","v":false},{"$f":"IF((E95 / 100)>1,InvalidAssessmentScore())","v":false}]
[94,null,null,null,null,0,"INVALID","YES",null,null,null,1,0,0,1,1,{"$f":"IF((D96 / 100)>1,InvalidAssessmentScore())","v":false},{"$f":"IF((E96 / 100)>1,InvalidAssessmentScore())","v":false}]
[95,null,null,null,null,0,"INVALID","YES",null,null,null,1,0,0,1,1,{"$f":"IF((D97 / 100)>1,InvalidAssessmentScore())","v":false},{"$f":"IF((E97 / 100)>1,InvalidAssessmentScore())","v":false}]
[96,null,null,null,null,0,"INVALID","YES",null,null,null,1,0,0,1,1,{"$f":"IF((D98 / 100)>1,InvalidAssessmentScore())","v":false},{"$f":"IF((E98 / 100)>1,InvalidAssessmentScore())","v":false}]
[97,null,null,null,null,0,"INVALID","YES",null,null,null,1,0,0,1,1,{"$f":"IF((D99 / 100)>1,InvalidAssessmentScore())","v":false},{"$f":"IF((E99 / 100)>1,InvalidAssessmentScore())","v":false}]
[98,null,null,null,null,0,"INVALID","YES",null,null,null,1,0,0,1,1,{"$f":"IF((D100 / 100)>1,InvalidAssessmentScore())","v":false},{"$f":"IF((E100 / 100)>1,InvalidAssessmentScore())","v":false}]
[99,null,null,null,null,0,"INVALID","YES",null,null,null,1,0,0,1,1,{"$f":"IF((D101 / 100)>1,InvalidAssessmentScore())","v":false},{"$f":"IF((E101 / 100)>1,InvalidAssessmentScore())","v":false}]
[100,null,null,null,null,0,"INVALID","YES",null,null,null,1,0,0,1,1,{"$f":"IF((D102 / 100)>1,InvalidAssessmentScore())","v":false},{"$f":"IF((E102 / 100)>1,InvalidAssessmentScore())","v":false}]
[101,null,null,null,null,0,"INVALID","YES",null,null,null,1,0,0,1,1,{"$f":"IF((D103 / 100)>1,InvalidAssessmentScore())","v":false},{"$f":"IF((E103 / 100)>1,InvalidAssessmentScore())","v":false}]
[102,null,null,null,null,0,"INVALID","YES",null,null,null,1,0,0,1,1,{"$f":"IF((D104 / 100)>1,InvalidAssessmentScore())","v":false},{"$f":"IF((E104 / 100)>1,InvalidAssessmentScore())","v":false}]
[103,null,null,null,null,0,"INVALID","YES",null,null,null,1,0,0,1,1,{"$f":"IF((D105 / 100)>1,InvalidAssessmentScore())","v":false},{"$f":"IF((E105 / 100)>1,InvalidAssessmentScore())","v":false}]
[104,null,null,null,null,0,"INVALID","YES",null,null,null,1,0,0,1,1,{"$f":"IF((D106 / 100)>1,InvalidAssessmentScore())","v":false},{"$f":"IF((E106 / 100)>1,InvalidAssessmentScore())","v":false}]
[105,null,null,null,null,0,"INVALID","YES",null,null,null,1,0,0,1,1,{"$f":"IF((D107 / 100)>1,InvalidAssessmentScore())","v":false},{"$f":"IF((E107 / 100)>1,InvalidAssessmentScore())","v":false}]
[106,null,null,null,null,0,"INVALID","YES",null,null,null,1,0,0,1,1,{"$f":"IF((D108 / 100)>1,InvalidAssessmentScore())","v":false},{"$f":"IF((E108 / 100)>1,InvalidAssessmentScore())","v":false}]
[107,null,null,null,null,0,"INVALID","YES",null,null,null,1,0,0,1,1,{"$f":"IF((D109 / 100)>1,InvalidAssessmentScore())","v":false},{"$f":"IF((E109 / 100)>1,InvalidAssessmentScore())","v":false}]
[108,null,null,null,null,0,"INVALID","YES",null,null,null,1,0,0,1,1,{"$f":"IF((D110 / 100)>1,InvalidAssessmentScore())","v":false},{"$f":"IF((E110 / 100)>1,InvalidAssessmentScore())","v":false}]
[109,null,null,null,null,0,"INVALID","YES",null,null,null,1,0,0,1,1,{"$f":"IF((D111 / 100)>1,InvalidAssessmentScore())","v":false},{"$f":"IF((E111 / 100)>1,InvalidAssessmentScore())","v":false}]
[110,null,null,null,null,0,"INVALID","YES",null,null,null,1,0,0,1,1,{"$f":"IF((D112 / 100)>1,InvalidAssessmentScore())","v":false},{"$f":"IF((E112 / 100)>1,InvalidAssessmentScore())","v":false}]
[111,null,null,null,null,0,"INVALID","YES",null,null,null,1,0,0,1,1,{"$f":"IF((D113 / 100)>1,InvalidAssessmentScore())","v":false},{"$f":"IF((E113 / 100)>1,InvalidAssessmentScore())","v":false}]
[112,null,null,null,null,0,"INVALID","YES",null,null,null,1,0,0,1,1,{"$f":"IF((D114 / 100)>1,InvalidAssessmentScore())","v":false},{"$f":"IF((E114 / 100)>1,InvalidAssessmentScore())","v":false}]
[113,null,null,null,null,0,"INVALID","YES",null,null,null,1,0,0,1,1,{"$f":"IF((D115 / 100)>1,InvalidAssessmentScore())","v":false},{"$f":"IF((E115 / 100)>1,InvalidAssessmentScore())","v":false}]
[114,null,null,null,null,0,"INVALID","YES",null,null,null,1,0,0,1,1,{"$f":"IF((D116 / 100)>1,InvalidAssessmentScore())","v":false},{"$f":"IF((E116 / 100)>1,InvalidAssessmentScore())","v":false}]
[115,null,null,null,null,0,"INVALID","YES",null,null,null,1,0,0,1,1,{"$f":"IF((D117 / 100)>1,InvalidAssessmentScore())","v":false},{"$f":"IF((E117 / 100)>1,InvalidAssessmentScore())","v":false}]
[116,null,null,null,null,0,"INVALID","YES",null,null,null,1,0,0,1,1,{"$f":"IF((D118 / 100)>1,InvalidAssessmentScore())","v":false},{"$f":"IF((E118 / 100)>1,InvalidAssessmentScore())","v":false}]
[117,null,null,null,null,0,"INVALID","YES",null,null,null,1,0,0,1,1,{"$f":"IF((D119 / 100)>1,InvalidAssessmentScore())","v":false},{"$f":"IF((E119 / 100)>1,InvalidAssessmentScore())","v":false}]
[118,null,null,null,null,0,"INVALID","YES",null,null,null,1,0,0,1,1,{"$f":"IF((D120 / 100)>1,InvalidAssessmentScore())","v":false},{"$f":"IF((E120 / 100)>1,InvalidAssessmentScore())","v":false}]
[119,null,null,null,null,0,"INVALID","YES",null,null,null,1,0,0,1,1,{"$f":"IF((D121 / 100)>1,InvalidAssessmentScore())","v":false},{"$f":"IF((E121 / 100)>1,InvalidAssessmentScore())","v":false}]
[120,null,null,null,null,0,"INVALID","YES",null,null,null,1,0,0,1,1,{"$f":"IF((D122 / 100)>1,InvalidAssessmentScore())","v":false},{"$f":"IF((E122 / 100)>1,InvalidAssessmentScore())","v":false}]
[121,null,null,null,null,0,"INVALID","YES",null,null,null,1,0,0,1,1,{"$f":"IF((D123 / 100)>1,InvalidAssessmentScore())","v":false},{"$f":"IF((E123 / 100)>1,InvalidAssessmentScore())","v":false}]
[122,null,null,null,null,0,"INVALID","YES",null,null,null,1,0,0,1,1,{"$f":"IF((D124 / 100)>1,InvalidAssessmentScore())","v":false},{"$f":"IF((E124 / 100)>1,InvalidAssessmentScore())","v":false}]
[123,null,null,null,null,0,"INVALID","YES",null,null,null,1,0,0,1,1,{"$f":"IF((D125 / 100)>1,InvalidAssessmentScore())","v":false},{"$f":"IF((E125 / 100)>1,InvalidAssessmentScore())","v":false}]
[124,null,null,null,null,0,"INVALID","YES",null,null,null,1,0,0,1,1,{"$f":"IF((D126 / 100)>1,InvalidAssessmentScore())","v":false},{"$f":"IF((E126 / 100)>1,InvalidAssessmentScore())","v":false}]
[125,null,null,null,null,0,"INVALID","YES",null,null,null,1,0,0,1,1,{"$f":"IF((D127 / 100)>1,InvalidAssessmentScore())","v":false},{"$f":"IF((E127 / 100)>1,InvalidAssessmentScore())","v":false}]
[126,null,null,null,null,0,"INVALID","YES",null,null,null,1,0,0,1,1,{"$f":"IF((D128 / 100)>1,InvalidAssessmentScore())","v":false},{"$f":"IF((E128 / 100)>1,InvalidAssessmentScore())","v":false}]
[127,null,null,null,null,0,"INVALID","YES",null,null,null,1,0,0,1,1,{"$f":"IF((D129 / 100)>1,InvalidAssessmentScore())","v":false},{"$f":"IF((E129 / 100)>1,InvalidAssessmentScore())","v":false}]
[128,null,null,null,null,0,"INVALID","YES",null,null,null,1,0,0,1,1,{"$f":"IF((D130 / 100)>1,InvalidAssessmentScore())","v":false},{"$f":"IF((E130 / 100)>1,InvalidAssessmentScore())","v":false}]
[129,null,null,null,null,0,"INVALID","YES",null,null,null,1,0,0,1,1,{"$f":"IF((D131 / 100)>1,InvalidAssessmentScore())","v":false},{"$f":"IF((E131 / 100)>1,InvalidAssessmentScore())","v":false}]
[130,null,null,null,null,{"$f":"(D132+E132)/2","v":0},{"$f":"IF((F132=0%),\"INVALID\", IF(AND(F132>=($J$11*100)),\"YES\", IF(AND(F132<($J$11*100),F132>=1%),\"NO\")))","v":"INVALID"},"YES",null,null,null,{"$f":"COUNTIF(H132,\"yes\")","v":1},{"$f":"COUNTIF(G132,\"yes\")","v":0},{"$f":"COUNTIF(G132,\"no\")","v":0},{"$f":"L132+M132","v":1},{"$f":"L132+N132","v":1},{"$f":"IF((D132 / 100)>1,InvalidAssessmentScore())","v":false},{"$f":"IF((E132 / 100)>1,InvalidAssessmentScore())","v":false}]
[131,null,null,null,null,0,"INVALID","YES",null,null,null,1,0,0,1,1,{"$f":"IF((D133 / 100)>1,InvalidAssessmentScore())","v":false},{"$f":"IF((E133 / 100)>1,InvalidAssessmentScore())","v":false}]
[132,null,null,null,null,0,"INVALID","YES",null,null,null,1,0,0,1,1,{"$f":"IF((D134 / 100)>1,InvalidAssessmentScore())","v":false},{"$f":"IF((E134 / 100)>1,InvalidAssessmentScore())","v":false}]
[133,null,null,null,null,0,"INVALID","YES",null,null,null,1,0,0,1,1,{"$f":"IF((D135 / 100)>1,InvalidAssessmentScore())","v":false},{"$f":"IF((E135 / 100)>1,InvalidAssessmentScore())","v":false}]
[134,null,null,null,null,0,"INVALID","YES",null,null,null,1,0,0,1,1,{"$f":"IF((D136 / 100)>1,InvalidAssessmentScore())","v":false},{"$f":"IF((E136 / 100)>1,InvalidAssessmentScore())","v":false}]
[135,null,null,null,null,0,"INVALID","YES",null,null,null,1,0,0,1,1,{"$f":"IF((D137 / 100)>1,InvalidAssessmentScore())","v":false},{"$f":"IF((E137 / 100)>1,InvalidAssessmentScore())","v":false}]
[136,null,null,null,null,0,"INVALID","YES",null,null,null,1,0,0,1,1,{"$f":"IF((D138 / 100)>1,InvalidAssessmentScore())","v":false},{"$f":"IF((E138 / 100)>1,InvalidAssessmentScore())","v":false}]
[137,null,null,null,null,0,"INVALID","YES",null,null,null,1,0,0,1,1,{"$f":"IF((D139 / 100)>1,InvalidAssessmentScore())","v":false},{"$f":"IF((E139 / 100)>1,InvalidAssessmentScore())","v":false}]
[138,null,null,null,null,0,"INVALID","YES",null,null,null,1,0,0,1,1,{"$f":"IF((D140 / 100)>1,InvalidAssessmentScore())","v":false},{"$f":"IF((E140 / 100)>1,InvalidAssessmentScore())","v":false}]
[139,null,null,null,null,0,"INVALID","YES",null,null,null,1,0,0,1,1,{"$f":"IF((D141 / 100)>1,InvalidAssessmentScore())","v":false},{"$f":"IF((E141 / 100)>1,InvalidAssessmentScore())","v":false}]
[140,null,null,null,null,0,"INVALID","YES",null,null,null,1,0,0,1,1,{"$f":"IF((D142 / 100)>1,InvalidAssessmentScore())","v":false},{"$f":"IF((E142 / 100)>1,InvalidAssessmentScore())","v":false}]
[141,null,null,null,null,0,"INVALID","YES",null,null,null,1,0,0,1,1,{"$f":"IF((D143 / 100)>1,InvalidAssessmentScore())","v":false},{"$f":"IF((E143 / 100)>1,InvalidAssessmentScore())","v":false}]
[142,null,null,null,null,0,"INVALID","YES",null,null,null,1,0,0,1,1,{"$f":"IF((D144 / 100)>1,InvalidAssessmentScore())","v":false},{"$f":"IF((E144 / 100)>1,InvalidAssessmentScore())","v":false}]
[143,null,null,null,null,0,"INVALID","YES",null,null,null,1,0,0,1,1,{"$f":"IF((D145 / 100)>1,InvalidAssessmentScore())","v":false},{"$f":"IF((E145 / 100)>1,InvalidAssessmentScore())","v":false}]
[144,null,null,null,null,0,"INVALID","YES",null,null,null,1,0,0,1,1,{"$f":"IF((D146 / 100)>1,InvalidAssessmentScore())","v":false},{"$f":"IF((E146 / 100)>1,InvalidAssessmentScore())","v":false}]
[145,null,null,null,null,0,"INVALID","YES",null,null,null,1,0,0,1,1,{"$f":"IF((D147 / 100)>1,InvalidAssessmentScore())","v":false},{"$f":"IF((E147 / 100)>1,InvalidAssessmentScore())","v":false}]
[146,null,null,null,null,0,"INVALID","YES",null,null,null,1,0,0,1,1,{"$f":"IF((D148 / 100)>1,InvalidAssessmentScore())","v":false},{"$f":"IF((E148 / 100)>1,InvalidAssessmentScore())","v":false}]
[147,null,null,null,null,0,"INVALID","YES",null,null,null,1,0,0,1,1,{"$f":"IF((D149 / 100)>1,InvalidAssessmentScore())","v":false},{"$f":"IF((E149 / 100)>1,InvalidAssessmentScore())","v":false}]
[148,null,null,null,null,0,"INVALID","YES",null,null,null,1,0,0,1,1,{"$f":"IF((D150 / 100)>1,InvalidAssessmentScore())","v":false},{"$f":"IF((E150 / 100)>1,InvalidAssessmentScore())","v":false}]
[149,null,null,null,null,0,"INVALID","YES",null,null,null,1,0,0,1,1,{"$f":"IF((D151 / 100)>1,InvalidAssessmentScore())","v":false},{"$f":"IF((E151 / 100)>1,InvalidAssessmentScore())","v":false}]
[150,null,null,null,null,0,"INVALID","YES",null,null,null,1,0,0,1,1,{"$f":"IF((D152 / 100)>1,InvalidAssessmentScore())","v":false},{"$f":"IF((E152 / 100)>1,InvalidAssessmentScore())","v":false}]
[151,null,null,null,null,0,"INVALID","YES",null,null,null,1,0,0,1,1,{"$f":"IF((D153 / 100)>1,InvalidAssessmentScore())","v":false},{"$f":"IF((E153 / 100)>1,InvalidAssessmentScore())","v":false}]
[152,null,null,null,null,0,"INVALID","YES",null,null,null,1,0,0,1,1,{"$f":"IF((D154 / 100)>1,InvalidAssessmentScore())","v":false},{"$f":"IF((E154 / 100)>1,InvalidAssessmentScore())","v":false}]
[153,null,null,null,null,0,"INVALID","YES",null,null,null,1,0,0,1,1,{"$f":"IF((D155 / 100)>1,InvalidAssessmentScore())","v":false},{"$f":"IF((E155 / 100)>1,InvalidAssessmentScore())","v":false}]
[154,null,null,null,null,0,"INVALID","YES",null,null,null,1,0,0,1,1,{"$f":"IF((D156 / 100)>1,InvalidAssessmentScore())","v":false},{"$f":"IF((E156 / 100)>1,InvalidAssessmentScore())","v":false}]
[155,null,null,null,null,0,"INVALID","YES",null,null,null,1,0,0,1,1,{"$f":"IF((D157 / 100)>1,InvalidAssessmentScore())","v":false},{"$f":"IF((E157 / 100)>1,InvalidAssessmentScore())","v":false}]
[156,null,null,null,null,0,"INVALID","YES",null,null,null,1,0,0,1,1,{"$f":"IF((D158 / 100)>1,InvalidAssessmentScore())","v":false},{"$f":"IF((E158 / 100)>1,InvalidAssessmentScore())","v":false}]
[157,null,null,null,null,0,"INVALID","YES",null,null,null,1,0,0,1,1,{"$f":"IF((D159 / 100)>1,InvalidAssessmentScore())","v":false},{"$f":"IF((E159 / 100)>1,InvalidAssessmentScore())","v":false}]
[158,null,null,null,null,0,"INVALID","YES",null,null,null,1,0,0,1,1,{"$f":"IF((D160 / 100)>1,InvalidAssessmentScore())","v":false},{"$f":"IF((E160 / 100)>1,InvalidAssessmentScore())","v":false}]
[159,null,null,null,null,0,"INVALID","YES",null,null,null,1,0,0,1,1,{"$f":"IF((D161 / 100)>1,InvalidAssessmentScore())","v":false},{"$f":"IF((E161 / 100)>1,InvalidAssessmentScore())","v":false}]
[160,null,null,null,null,0,"INVALID","YES",null,null,null,1,0,0,1,1,{"$f":"IF((D162 / 100)>1,InvalidAssessmentScore())","v":false},{"$f":"IF((E162 / 100)>1,InvalidAssessmentScore())","v":false}]
[161,null,null,null,null,0,"INVALID","YES",null,null,null,1,0,0,1,1,{"$f":"IF((D163 / 100)>1,InvalidAssessmentScore())","v":false},{"$f":"IF((E163 / 100)>1,InvalidAssessmentScore())","v":false}]
[162,null,null,null,null,0,"INVALID","YES",null,null,null,1,0,0,1,1,{"$f":"IF((D164 / 100)>1,InvalidAssessmentScore())","v":false},{"$f":"IF((E164 / 100)>1,InvalidAssessmentScore())","v":false}]
[163,null,null,null,null,0,"INVALID","YES",null,null,null,1,0,0,1,1,{"$f":"IF((D165 / 100)>1,InvalidAssessmentScore())","v":false},{"$f":"IF((E165 / 100)>1,InvalidAssessmentScore())","v":false}]
[164,null,null,null,null,0,"INVALID","YES",null,null,null,1,0,0,1,1,{"$f":"IF((D166 / 100)>1,InvalidAssessmentScore())","v":false},{"$f":"IF((E166 / 100)>1,InvalidAssessmentScore())","v":false}]
[165,null,null,null,null,0,"INVALID","YES",null,null,null,1,0,0,1,1,{"$f":"IF((D167 / 100)>1,InvalidAssessmentScore())","v":false},{"$f":"IF((E167 / 100)>1,InvalidAssessmentScore())","v":false}]
[166,null,null,null,null,0,"INVALID","YES",null,null,null,1,0,0,1,1,{"$f":"IF((D168 / 100)>1,InvalidAssessmentScore())","v":false},{"$f":"IF((E168 / 100)>1,InvalidAssessmentScore())","v":false}]
[167,null,null,null,null,0,"INVALID","YES",null,null,null,1,0,0,1,1,{"$f":"IF((D169 / 100)>1,InvalidAssessmentScore())","v":false},{"$f":"IF((E169 / 100)>1,InvalidAssessmentScore())","v":false}]
[168,null,null,null,null,0,"INVALID","YES",null,null,null,1,0,0,1,1,{"$f":"IF((D170 / 100)>1,InvalidAssessmentScore())","v":false},{"$f":"IF((E170 / 100)>1,InvalidAssessmentScore())","v":false}]
[169,null,null,null,null,0,"INVALID","YES",null,null,null,1,0,0,1,1,{"$f":"IF((D171 / 100)>1,InvalidAssessmentScore())","v":false},{"$f":"IF((E171 / 100)>1,InvalidAssessmentScore())","v":false}]
[170,null,null,null,null,0,"INVALID","YES",null,null,null,1,0,0,1,1,{"$f":"IF((D172 / 100)>1,InvalidAssessmentScore())","v":false},{"$f":"IF((E172 / 100)>1,InvalidAssessmentScore())","v":false}]
[171,null,null,null,null,0,"INVALID","YES",null,null,null,1,0,0,1,1,{"$f":"IF((D173 / 100)>1,InvalidAssessmentScore())","v":false},{"$f":"IF((E173 / 100)>1,InvalidAssessmentScore())","v":false}]
[172,null,null,null,null,0,"INVALID","YES",null,null,null,1,0,0,1,1,{"$f":"IF((D174 / 100)>1,InvalidAssessmentScore())","v":false},{"$f":"IF((E174 / 100)>1,InvalidAssessmentScore())","v":false}]
[173,null,null,null,null,0,"INVALID","YES",null,null,null,1,0,0,1,1,{"$f":"IF((D175 / 100)>1,InvalidAssessmentScore())","v":false},{"$f":"IF((E175 / 100)>1,InvalidAssessmentScore())","v":false}]
[174,null,null,null,null,0,"INVALID","YES",null,null,null,1,0,0,1,1,{"$f":"IF((D176 / 100)>1,InvalidAssessmentScore())","v":false},{"$f":"IF((E176 / 100)>1,InvalidAssessmentScore())","v":false}]
[175,null,null,null,null,0,"INVALID","YES",null,null,null,1,0,0,1,1,{"$f":"IF((D177 / 100)>1,InvalidAssessmentScore())","v":false},{"$f":"IF((E177 / 100)>1,InvalidAssessmentScore())","v":false}]
[176,null,null,null,null,0,"INVALID","YES",null,null,null,1,0,0,1,1,{"$f":"IF((D178 / 100)>1,InvalidAssessmentScore())","v":false},{"$f":"IF((E178 / 100)>1,InvalidAssessmentScore())","v":false}]
[177,null,null,null,null,0,"INVALID","YES",null,null,null,1,0,0,1,1,{"$f":"IF((D179 / 100)>1,InvalidAssessmentScore())","v":false},{"$f":"IF((E179 / 100)>1,InvalidAssessmentScore())","v":false}]
[178,null,null,null,null,0,"INVALID","YES",null,null,null,1,0,0,1,1,{"$f":"IF((D180 / 100)>1,InvalidAssessmentScore())","v":false},{"$f":"IF((E180 / 100)>1,InvalidAssessmentScore())","v":false}]
[179,null,null,null,null,0,"INVALID","YES",null,null,null,1,0,0,1,1,{"$f":"IF((D181 / 100)>1,InvalidAssessmentScore())","v":false},{"$f":"IF((E181 / 100)>1,InvalidAssessmentScore())","v":false}]
[180,null,null,null,null,0,"INVALID","YES",null,null,null,1,0,0,1,1,{"$f":"IF((D182 / 100)>1,InvalidAssessmentScore())","v":false},{"$f":"IF((E182 / 100)>1,InvalidAssessmentScore())","v":false}]
[]
[]
[]
[]
[]
[]
[]
[]
[null,"After approval from your evaluator, please enter a brief explanation why."]
[null,"Last Name","First Name"]
[null,{"$f":"IF(H3=\"no\", B3, \"DELETE\")","v":"DELETE"},{"$f":"IF(H3=\"no\", C3,\"DELETE\")","v":"DELETE"}]
[null,"DELETE","DELETE"]
[null,"DELETE","DELETE"]
[null,"DELETE","DELETE"]
[null,"DELETE","DELETE"]
[null,"DELETE","DELETE"]
[null,"DELETE","DELETE"]
[null,"DELETE","DELETE"]
[null,"DELETE","DELETE"]
[null,"DELETE","DELETE"]
[null,"DELETE","DELETE"]
[null,"DELETE","DELETE"]
[null,"DELETE","DELETE"]
[null,"DELETE","DELETE"]
[null,"DELETE","DELETE"]
[null,"DELETE","DELETE"]
[null,"DELETE","DELETE"]
[null,"DELETE","DELETE"]
[null,"DELETE","DELETE"]
[null,"DELETE","DELETE"]
[null,"DELETE","DELETE"]
[null,"DELETE","DELETE"]
[null,"DELETE","DELETE"]
[null,"DELETE","DELETE"]
[null,"DELETE","DELETE"]
[null,"DELETE","DELETE"]
[null,"DELETE","DELETE"]
[null,"DELETE","DELETE"]
[null,"DELETE","DELETE"]
[null,"DELETE","DELETE"]
[null,"DELETE","DELETE"]
[null,"DELETE","DELETE"]
[null,{"$f":"IF(H35=\"no\", B35, \"DELETE\")","v":"DELETE"},{"$f":"IF(H35=\"no\", C35,\"DELETE\")","v":"DELETE"}]
[null,"DELETE","DELETE"]
[null,"DELETE","DELETE"]
[null,"DELETE","DELETE"]
[null,"DELETE","DELETE"]
[null,"DELETE","DELETE"]
[null,"DELETE","DELETE"]
[null,"DELETE","DELETE"]
[null,"DELETE","DELETE"]
[null,"DELETE","DELETE"]
[null,"DELETE","DELETE"]
[null,"DELETE","DELETE"]
[null,"DELETE","DELETE"]
[null,"DELETE","DELETE"]
[null,"DELETE","DELETE"]
[null,"DELETE","DELETE"]
[null,"DELETE","DELETE"]
[null,"DELETE","DELETE"]
[null,"DELETE","DELETE"]
[null,"DELETE","DELETE"]
[null,"DELETE","DELETE"]
[null,"DELETE","DELETE"]
[null,"DELETE","DELETE"]
[null,"DELETE","DELETE"]
[null,"DELETE","DELETE"]
[null,"DELETE","DELETE"]
[null,"DELETE","DELETE"]
[null,"DELETE","DELETE"]
[null,"DELETE","DELETE"]
[null,"DELETE","DELETE"]
[null,"DELETE","DELETE"]
[null,"DELETE","DELETE"]
[null,{"$f":"IF(H67=\"no\", B67, \"DELETE\")","v":"DELETE"},{"$f":"IF(H67=\"no\", C67,\"DELETE\")","v":"DELETE"}]
[null,"DELETE","DELETE"]
[null,"DELETE","DELETE"]
[null,"DELETE","DELETE"]
[null,"DELETE","DELETE"]
[null,"DELETE","DELETE"]
[null,"DELETE","DELETE"]
[null,"DELETE","DELETE"]
[null,"DELETE","DELETE"]
[null,"DELETE","DELETE"]
[null,"DELETE","DELETE"]
[null,"DELETE","DELETE"]
[null,"DELETE","DELETE"]
[null,"DELETE","DELETE"]
[null,"DELETE","DELETE"]
[null,"DELETE","DELETE"]
[null,"DELETE","DELETE"]
[null,"DELETE","DELETE"]
[null,"DELETE","DELETE"]
[null,"DELETE","DELETE"]
[null,"DELETE","DELETE"]
[null,"DELETE","DELETE"]
[null,"DELETE","DELETE"]
[null,"DELETE","DELETE"]
[null,"DELETE","DELETE"]
[null,"DELETE","DELETE"]
[null,"DELETE","DELETE"]
[null,"DELETE","DELETE"]
[null,"DELETE","DELETE"]
[null,"DELETE","DELETE"]
[null,"DELETE","DELETE"]
[null,"DELETE","DELETE"]
[null,{"$f":"IF(H99=\"no\", B99, \"DELETE\")","v":"DELETE"},{"$f":"IF(H99=\"no\", C99,\"DELETE\")","v":"DELETE"}]
[null,"DELETE","DELETE"]
[null,"DELETE","DELETE"]
[null,"DELETE","DELETE"]
[null,"DELETE","DELETE"]
[null,"DELETE","DELETE"]
[null,"DELETE","DELETE"]
[null,"DELETE","DELETE"]
[null,"DELETE","DELETE"]
[null,"DELETE","DELETE"]
[null,"DELETE","DELETE"]
[null,"DELETE","DELETE"]
[null,"DELETE","DELETE"]
[null,"DELETE","DELETE"]
[null,"DELETE","DELETE"]
[null,"DELETE","DELETE"]
[null,"DELETE","DELETE"]
[null,"DELETE","DELETE"]
[null,"DELETE","DELETE"]
[null,"DELETE","DELETE"]
[null,"DELETE","DELETE"]
[null,"DELETE","DELETE"]
[null,"DELETE","DELETE"]
[null,"DELETE","DELETE"]
[null,"DELETE","DELETE"]
[null,"DELETE","DELETE"]
[null,"DELETE","DELETE"]
[null,"DELETE","DELETE"]
[null,"DELETE","DELETE"]
[null,"DELETE","DELETE"]
[null,"DELETE","DELETE"]
[null,"DELETE","DELETE"]
[null,{"$f":"IF(H131=\"no\", B131, \"DELETE\")","v":"DELETE"},{"$f":"IF(H131=\"no\", C131,\"DELETE\")","v":"DELETE"}]
[null,"DELETE","DELETE"]
[null,"DELETE","DELETE"]
[null,"DELETE","DELETE"]
[null,"DELETE","DELETE"]
[null,"DELETE","DELETE"]
[null,"DELETE","DELETE"]
[null,"DELETE","DELETE"]
[null,"DELETE","DELETE"]
[null,"DELETE","DELETE"]
[null,"DELETE","DELETE"]
[null,"DELETE","DELETE"]
[null,"DELETE","DELETE"]
[null,"DELETE","DELETE"]
[null,"DELETE","DELETE"]
[null,"DELETE","DELETE"]
[null,"DELETE","DELETE"]
[null,"DELETE","DELETE"]
[null,"DELETE","DELETE"]
[null,"DELETE","DELETE"]
[null,"DELETE","DELETE"]
[null,"DELETE","DELETE"]
[null,"DELETE","DELETE"]
[null,"DELETE","DELETE"]
[null,"DELETE","DELETE"]
[null,"DELETE","DELETE"]
[null,"DELETE","DELETE"]
[null,"DELETE","DELETE"]
[null,"DELETE","DELETE"]
[null,"DELETE","DELETE"]
[null,"DELETE","DELETE"]
[null,"DELETE","DELETE"]
[null,{"$f":"IF(H163=\"no\", B163, \"DELETE\")","v":"DELETE"},{"$f":"IF(H163=\"no\", C163,\"DELETE\")","v":"DELETE"}]
[null,"DELETE","DELETE"]
[null,"DELETE","DELETE"]
[null,"DELETE","DELETE"]
[null,"DELETE","DELETE"]
[null,"DELETE","DELETE"]
[null,"DELETE","DELETE"]
[null,"DELETE","DELETE"]
[null,"DELETE","DELETE"]
[null,"DELETE","DELETE"]
[null,"DELETE","DELETE"]
[null,"DELETE","DELETE"]
[null,"DELETE","DELETE"]
[null,"DELETE","DELETE"]
[null,"DELETE","DELETE"]
[null,"DELETE","DELETE"]
[null,"DELETE","DELETE"]
[null,"DELETE","DELETE"]
[null,"DELETE","DELETE"]
[null,"DELETE","DELETE"]

{"sheet":"Sheet2","index":1,"n_rows":0,"n_cols":0,"rows_kept":0,"cut":false,"hidden":false,"merged":[]}

{"sheet":"Sheet3","index":2,"n_rows":0,"n_cols":0,"rows_kept":0,"cut":false,"hidden":false,"merged":[]}